Cogmind - Beta 13 @@@ ROGUE MODE // 2024.04.18 @ 18:33:59 Player: Ashlemon Result: Destroyed by Y-45 Defender with Heavy Assault Rifle Performance ------------- Evolutions (1) 500 Regions Visited (2) 400 Robots Destroyed (6) 30 Value Destroyed (159) 159 Prototype IDs (0) 0 Alien Tech Used (0) 0 Bonus (0) 0 TOTAL SCORE: 1089 Bonus ------- None Cogmind --------- Core Integrity 0/400 Matter 300/300 Energy 100/100 System Corruption 0% Temperature Cool (9) Movement Core (50) Location -9/Materials Parts ------- > --- POWER (1) -------- (None) > --- PROPULSION (4) --- (None) > --- UTILITY (2) ------ (None) > --- WEAPON (2) ------- (None) > --- INVENTORY (5) ---- Large Battery (200) Visual Processing Unit Signal Interpreter Peak State ------------ > --- POWER ------------ Ion Engine > --- PROPULSION ------- Light Treads Light Treads Compact Wheel Compact Wheel > --- UTILITY ---------- Small Storage Unit Core Shielding > --- WEAPON ----------- Medium Laser Welding Torch > --- INVENTORY -------- Light Ion Engine Large Battery Visual Processing Unit Signal Interpreter Datajack Mining Laser [Rating: 9] Favorites ----------- Power Ion Engine Engine Ion Engine Propulsion Light Treads Treads Light Treads Wheel Compact Wheel Utility Small Storage Unit Storage Small Storage Unit Protection Core Shielding Weapon Assault Rifle Energy Gun Medium Laser Ballistic Gun Assault Rifle Special Weapon Welding Torch Special Melee Weapon Datajack Build | -11 -10 -9 ------- Run | Yrd Mat Mat Slots Evolved 2 | . . 2 Power . | . . . Propulsion 2 | . . 2 Utility . | . . . Weapon . | . . . Parts Attached 24 | 5 8 11 Power 2 | 1 . 1 Engine 2 | 1 . 1 Core . | . . . Reactor . | . . . Propulsion 6 | 2 . 4 Treads 4 | 2 . 2 Leg . | . . . Wheel 2 | . . 2 Hover . | . . . Flight . | . . . Utility 3 | 1 1 1 Device . | . . . Storage 2 | 1 . 1 Processor . | . . . Hackware . | . . . Protection 1 | . 1 . Artifact . | . . . Weapon 13 | 1 7 5 Energy Gun 3 | . 2 1 Energy Cannon . | . . . Ballistic Gun 3 | 1 1 1 Ballistic Cannon . | . . . Launcher . | . . . Special Weapon 5 | . 3 2 Impact Weapon . | . . . Slashing Weapon . | . . . Piercing Weapon . | . . . Special Melee Weapon 2 | . 1 1 Unidentified Prototypes . | . . . Parts Lost 13 | . . 13 Power 2 | . . 2 Propulsion 4 | . . 4 Utility 2 | . . 2 Weapon 5 | . . 5 Highest Loss Streak 13 | . . 13 To Critical Strikes . | . . . Average Slot Usage (%) 89 | . 90 87 Engine 12 | . 14 9 Treads 27 | . 28 27 Wheel 2 | . . 8 Storage 13 | . 14 11 Protection 7 | . 5 11 Energy Gun 5 | . 4 10 Ballistic Gun 9 | . 13 . Special Weapon 8 | . 9 8 Special Melee Weapon 1 | . 1 . Naked Turns 2 | . . 2 Heaviest Build 19 | 12 14 19 Greatest Support 80 | 40 40 80 Greatest Overweight (x) 4 | 1 . 4 Average Overweight (x) . | . . . Largest Inventory Capacity 10 | 8 8 10 Average Capacity 8 | 7 8 8 Most Carried 8 | 5 8 8 Average Carried 6 | 3 6 6 Final Capacity 8 | 8 8 5 Final Carried 8 | 5 8 3 Class Distribution -------------------- 100% | Mutant Dominant Class ---------------- Mutant | -10/Materials Mutant | -9/Materials Resources | -11 -10 -9 ----------- Run | Yrd Mat Mat Matter Collected 381 | 206 49 126 Remotely . | . . . Salvage Created 237 | . 49 188 Parts 13 | . 1 12 Haulers Intercepted 1 | . . 1 Recyclers Shooed . | . . . Parts Field Recycled . | . . . Retrieved Matter . | . . . Parts Self-Destructed . | . . . Prevented . | . . . Kills | -11 -10 -9 ------- Run | Yrd Mat Mat Combat Hostiles Destroyed 5 | . 1 4 Guns 3 | . 1 2 Cannons 2 | . . 2 Classes Destroyed 4 | . 1 3 Hauler 1 | . . 1 Swarmer 1 | . . 1 Grunt 3 | . 1 2 Sentry 1 | . . 1 Best Kill Streak 2 | . 1 2 Combat Bots Only 2 | . 1 2 Max Kills in Single Turn 1 | . 1 1 Gunslinging . | . . . Exploded . | . . . Melee . | . . . Uniques/NPCs Destroyed . | . . . Combat | -11 -10 -9 -------- Run | Yrd Mat Mat Hostile Shots Fired 197 | . 7 190 Missed 46 | . 1 45 Damage Taken 1532 | . 66 1466 Core 429 | . 20 409 Absorbed by Shields . | . . . Redirected to Shielding 53 | . . 53 Regen/Repaired (Parts) 22 | . 22 . Core Remaining (%) 96 | 100 92 . Volleys Fired 25 | . 8 17 Largest 2 | . 2 2 Hottest 70 | . 70 70 Shots Fired 41 | . 12 29 Gun 25 | . 8 17 Cannon . | . . . Launcher . | . . . Special 16 | . 4 12 Kinetic 6 | . 6 . Thermal 35 | . 6 29 Explosive . | . . . Electromagnetic . | . . . Robot Hit Streak 6 | . 2 6 Robot Miss Streak 4 | . 2 4 Penetration Max . | . . . Secondary Targets . | . . . Shots Hit Robots 27 | . 7 20 Core Hits 20 | . 2 18 Critical Kills . | . . . Critical Parts Destroyed . | . . . Critical Strikes 1 | . . 1 Burn 1 | . . 1 Melee Attacks 8 | . 4 4 Impact . | . . . Slashing . | . . . Piercing . | . . . Sneak Attacks 7 | . 3 4 Combat Hostiles . | . . . Follow-up Attacks . | . . . Damage Inflicted 238 | . 49 189 Guns 226 | . 49 177 Cannons . | . . . Explosions . | . . . Melee . | . . . Ramming 4 | . . 4 Kinetic 49 | . 49 . Thermal 185 | . . 185 Explosive . | . . . Electromagnetic . | . . . Impact . | . . . Slashing . | . . . Piercing . | . . . Highest Corruption . | . . . Average Corruption . | . . . Corruption Purged . | . . . Corruption Blocked . | . . . Overload Shots . | . . . Overflow Damage . | . . . Projectiles . | . . . Explosions . | . . . Melee . | . . . Knockbacks . | . . . Impact . | . . . Kinetic . | . . . Secondary . | . . . Self-Inflicted Damage 1 | . . 1 Shots . | . . . Rammed 3 | . . 3 Targets Rammed 3 | . . 3 Kicked . | . . . Crushed . | . . . Highest Temperature 33 | . 9 33 Average Temperature 14 | . 6 15 Received Heat Transfer 255 | . 36 219 Siege Activations . | . . . Robots Corrupted . | . . . Combat Hostiles . | . . . Parts Fried . | . . . Impact Corruptions . | . . . Robots Melted . | . . . Combat Hostiles . | . . . Parts Melted 1 | . . 1 Heat Transferred 589 | . . 589 Parts Sabotaged . | . . . Parts Stolen . | . . . Parts Stripped . | . . . Power Chain Reactions . | . . . Alert | -11 -10 -9 ------- Run | Yrd Mat Mat Peak Influence 142 | . 35 142 Initial 5 | . . 5 Average 28 | . 16 76 Maximum Alert Level . | . . . Low Security (%) 100 | 100 100 100 Level 1 . | . . . Level 2 . | . . . Level 3 . | . . . Level 4 . | . . . Level 5 . | . . . High Security . | . . . Max Security . | . . . Squads Dispatched 2 | . 1 1 Investigation 1 | . 1 . Extermination . | . . . Reinforcement 1 | . . 1 Assault . | . . . Garrison . | . . . Intercept . | . . . Searches Triggered . | . . . Construction Impeded . | . . . Haulers Reinforced . | . . . Active Scanning Responses . | . . . Cargo Convoy Interrupts . | . . . Stealth | -11 -10 -9 --------- Run | Yrd Mat Mat Distress Signals 1 | . . 1 Communications Jammed . | . . . Distress Signals . | . . . Times Spotted 23 | . 4 19 Peak Tracking Total 14 | . 2 14 Tactical Retreats 2 | . . 2 Traps | -11 -10 -9 ------- Run | Yrd Mat Mat Traps Triggered 1 | . 1 . Indirectly . | . . . Trap Hack Attempts . | . . . Triggered . | . . . Disarmed . | . . . Reprogrammed . | . . . Reused . | . . . Traps Extracted . | . . . Installed . | . . . Triggered . | . . . Machines | -11 -10 -9 ---------- Run | Yrd Mat Mat Machines Disabled . | . . . Max in Single Turn . | . . . Machines Repaired . | . . . Machines Dismantled . | . . . Machines Sabotaged . | . . . Overloaded Fab Kills . | . . . Hacking | -11 -10 -9 --------- Run | Yrd Mat Mat Machines Accessed 5 | . 4 1 Terminals 4 | . 3 1 Fabricators . | . . . Repair Stations 1 | . 1 . Recycling Units . | . . . Scanalyzers . | . . . Garrison Access . | . . . Total Hacks 8 | . 6 2 Successful 6 | . 5 1 Failed 2 | . 1 1 Catastrophic . | . . . Database Lockouts . | . . . Manual . | . . . Terminals 5 | . 3 2 Fabricators . | . . . Repair Stations 3 | . 3 . Recycling Units . | . . . Scanalyzers . | . . . Garrison Access . | . . . Terminal Hacks 3 | . 2 1 Record 1 | . . 1 Transport Status 1 | . 1 . Hauler Manifests 1 | . 1 . Fabricator Hacks . | . . . Repair Station Hacks 3 | . 3 . Scan Component 1 | . 1 . Repair 1 | . 1 . Refit 1 | . 1 . Recycling Unit Hacks . | . . . Scanalyzer . | . . . Garrison Access Hacks . | . . . Unauthorized Hacks . | . . . Terminals . | . . . Fabricators . | . . . Repair Stations . | . . . Recycling Units . | . . . Scanalyzers . | . . . Garrison Access . | . . . Data Cores Recovered . | . . . Used . | . . . Hacking Detections 2 | . 1 1 Full Trace Events . | . . . Feedback Events . | . . . Feedback Blocked . | . . . Robot Schematics Acquired . | . . . Robots Built . | . . . Authchips . | . . . Time . | . . . Total Robot Build Rating . | . . . Part Schematics Acquired . | . . . Parts Built . | . . . Authchips . | . . . Time . | . . . Total Part Build Rating . | . . . Parts Repaired 1 | . 1 . Time 26 | . 26 . Parts Recycled . | . . . Recycled Matter . | . . . Retrieved Matter . | . . . Retrieved Components . | . . . Parts Scanalyzed . | . . . Part Schematics Acquired . | . . . Parts Damaged . | . . . Bothacking | -11 -10 -9 ------------ Run | Yrd Mat Mat Used RIF Installer . | . . . Robots Hacked 2 | . 1 1 Non-combat 2 | . 1 1 Combat . | . . . Robot Hacks Applied 4 | . 2 2 parse_system 2 | . 1 1 no_distress 2 | . 1 1 Relay Couplers Released . | . . . Fabnet Peak Effective % . | . . . Robots Rewired . | . . . Allies Hacked . | . . . Hacks Repelled . | . . . Allies | -11 -10 -9 -------- Run | Yrd Mat Mat Total Allies . | . . . Largest Group . | . . . Highest-Rated Group . | . . . Highest-Rated Ally . | . . . Total Orders . | . . . Ally Attacks . | . . . Total Damage . | . . . Kills . | . . . Allies Corrupted . | . . . Allies Melted . | . . . Intel | -11 -10 -9 ------- Run | Yrd Mat Mat Robot Analysis Total . | . . . Derelict Logs Recovered . | . . . Drone Launches . | . . . Drone Recoveries . | . . . Exploration | -11 -10 -9 ------------- Run | Yrd Mat Mat Turns Passed 1358 | 179 848 331 Spaces Moved 776 | 109 493 174 Core 13 | 7 . 6 Treads 700 | 102 493 105 Legs . | . . . Wheels 63 | . . 63 Hover . | . . . Flight . | . . . Fastest Speed 50 | 50 160 50 Average Speed 154 | 153 160 139 Slowest Speed 250 | 160 160 250 Overloaded Moves . | . . . Propulsion Burnouts . | . . . Robots Hopped . | . . . Cave-ins Triggered . | . . . Exploration Rate (%) 23 | 8 49 12 Regions Visited 2 Branch Regions . Pre-discovered Areas . | . . . Known Exits Taken . | . . . Unknown Exits Taken 2 | 1 1 . Scrap Searched . | . . . Spaces Dug . | . . . Terrain Destroyed . | . . . Melee . | . . . Projectile . | . . . AOE . | . . . Terrain Rammed . | . . . Walls Destroyed . | . . . Machines Disabled . | . . . Actions | -11 -10 -9 --------- Run | Yrd Mat Mat Total 882 | 118 537 227 Wait 16 | . 10 6 Move 774 | 108 492 174 Hop . | . . . Pick Up 17 | 5 9 3 Fast Attach 13 | 5 2 6 Attach 2 | . . 2 Detach 1 | . . 1 Swap 9 | . 6 3 Drop 14 | . 6 8 Fire 25 | . 8 17 Melee 8 | . 4 4 Ram 3 | . . 3 Kick . | . . . Crush . | . . . Escape Stasis . | . . . Rewire . | . . . Trap . | . . . Miscellaneous . | . . . Route ------- -11/Scrapyard -10/Materials (discovered 3 exits: *Mat / [*Min x2]) -9/Materials History --------- Turn | Location | Event 26 | -11/Scrapyard | Discovered new exit (range 15) 180 | -11/Scrapyard | Entered Materials 233 | -10/Materials | Discovered new exit (range 16) 312 | -10/Materials | Build established: Mutant 681 | -10/Materials | Discovered new exit (range 7) 742 | -10/Materials | Repaired Assault Rifle? 862 | -10/Materials | Discovered new exit (range 12) 1028 | -10/Materials | Entered another Materials area 1028 | -9/Materials | Evolved 2 slots: Propulsion x2 1346 | -9/Materials | Core integrity fell below 50% 1356 | -9/Materials | Core integrity fell below 20% 1359 | -9/Materials | Destroyed by Y-45 Defender with Heavy Assault Rifle Last Messages --------------- Y-45 Defender destroyed. S-10 Pest destroyed. Spread Laser destroyed. K-01 Serf collects debris. Dropped Heat Sink. Dropped Datajack. Dropped Mining Laser. K-01 Serf collects debris. Critical hit (Burn: +37). Core Shielding destroyed. K-01 Serf collects debris. Acquired Mining Laser. Slammed into S-10 Pest. K-01 Serf collects debris. Mining Laser destroyed. M-13 Machinist repairs K-01 Serf. Slammed into S-10 Pest. Med. Storage Unit destroyed. K-01 Serf collects debris. Slammed into K-01 Serf. Map ----- +----------------------------------------------------+ | | | | | | | | | | | | | | | ???????????????????????????????????? | | ???????????????????????????????????? | | ???????????????????????????????????? | | ???????????????????????????????????? | | ???????????????????????????????????? | | ???????????????????????????????????? | | ???????????????????????????????????? | | ???????????????????????????????????? | | ???????????????????????????????????? | | ?????????????????????????????#?????? | | ###########????????????????? #?????? | | # #??????######???? #?????? | | # """"""" #??????# ##### +?????? | | # """"""" #??????# #?????? | | # """"""" #??????# #?????? | | # """"""" #??????# ##+#####?????? | | # """""""=#??????## ## sY #??????? | | # =! !!! #???????# ## =kls#??????? | | # ^! ! #???????# *##! @m/#??????? | | #####+#####???????#=%## g%s #??????? | | ############ ## ! #??????? | | "%" # #??????? | | ########### #=%*! #??????? | | #### #?????????# ##+####??????? | | ???# #?????????# ##[#?????????? | | ??# #?????????## ###*#?????????? | | ?#?# #?????????? #?# #?????????? | | ???# #?????????? #?# #?????????? | | ??? #?????????? ? ?????????? | | ??## #?????????? ?????????? | | ???# #?????????? ?????????? | | ???# #?????????? ?????????? | | ???# #??????????# ???????????? | | ???# #??????????? ??????????? | | ???# #??????????? ??????????? | | ???# ???????????? ????????????? | | ???# ???????????? ?????????????? | | ???? ????????????????????????????? | | ???????????????????????????????????? | | ???????????????????????????????????? | | ???????????????????????????????????? | | ???????????????????????????????????? | | ???????????????????????????????????? | +----------------------------------------------------+ Best States ------------- Heat Dissipation 28 Energy Generation 10 Energy Capacity 250 Matter Stores 293 Matter Capacity 300 Sight Range 16 Terrain Scan Density 10 Core Shielding 20 Evasion (%) 40 Recoil Reduction 4 Item Schematics ----------------- None Robot Schematics ------------------ None Fabricated ------------ Nothing Alien Tech Used ----------------- None Achievements -------------- Loot Pinata Challenges ------------ None Game ------ Seed AnalysisShadeBlade Manual? 0 Play Time 00:16:42 Cumulative 5.9 hours Start 2024.04.17 @ 20:29:10 End 2024.04.18 @ 18:33:59 Sessions 2 Manual Loads 0 Difficulty Rogue Special Mode None Game No. 13 Rogue 13 Adventurer 0 Explorer 0 Win Type - Total 0 Types 0/0/0/0/0/0/0/0/0 Lore% 4 Gallery% 13 Achievement% 10 Wizard Run 0 Options --------- Layout 1 ASCII 0 Keyboard 1 Movement Arrows Keybinds 0 Fullscreen 1 Font 24/Smallcaps Map View 50x35 Zoom Use 0% Tactical HUD 0 Map Filters NONE Filters NONE Steam 1 RUN: 190b5914-8a56-4bd8-b18c-cbf317ee275a